fUSD/lending_fUSD_20250427
["ID","MTS","AMOUNT","RATE_DAILY","PERIOD"]
[359170539,1745769043984,-480.0,0.00019962,2]
[359170540,1745769043993,-480.0,0.00019962,2]
[359170541,1745769044003,-1695.45,0.00019962,2]
[359170542,1745769044012,-480.0,0.00019962,2]
[359170543,1745769044025,-537.95364755,0.00019962,2]
[359170544,1745769044034,-480.0,0.00019962,2]
[359170545,1745769044044,-2117.48,0.00019962,2]
[359170546,1745769044053,-480.0,0.00019962,2]
[359170547,1745769044064,-480.0,0.00019962,2]
[359170548,1745769044074,-480.0,0.00019962,2]
[359170549,1745769044084,-480.0,0.00019962,2]
[359170550,1745769044095,-480.0,0.00019962,2]
[359170551,1745769044104,-480.0,0.00019962,2]
[359170552,1745769044114,-480.0,0.00019962,2]
[359170553,1745769044124,-480.0,0.00019962,2]
[359170554,1745769044133,-917.54,0.00019962,2]
[359170555,1745769044143,-480.0,0.00019962,2]
[359170556,1745769044153,-480.0,0.00019962,2]
[359170557,1745769044162,-480.0,0.00019962,2]
[359170558,1745769044172,-480.0,0.00019962,2]
[359170559,1745769044182,-480.0,0.00019962,2]
[359170560,1745769044191,-480.0,0.00019962,2]
[359170561,1745769044201,-480.0,0.00019962,2]
[359170562,1745769044210,-480.0,0.00019962,2]
[359170563,1745769044219,-616.19,0.00019962,2]
[359170564,1745769044229,-480.0,0.00019962,2]
[359170565,1745769044238,-220.82931089,0.00019962,2]
[359170566,1745769044248,-480.0,0.00019962,2]
[359170567,1745769044258,-480.0,0.00019962,2]
[359170568,1745769044268,-480.0,0.00019962,2]
[359170569,1745769044277,-506.71794759,0.00019962,2]
[359170570,1745769044287,-480.0,0.00019962,2]
[359170571,1745769044296,-480.0,0.00019962,2]
[359170572,1745769044306,-480.0,0.00019962,2]
[359170573,1745769044316,-480.0,0.00019962,2]
[359170574,1745769044325,-480.0,0.00019962,2]
[359170575,1745769044335,-151.0,0.00019962,2]
[359170576,1745769044344,-151.0,0.00019962,2]
[359170577,1745769044354,-796.0,0.00019963,2]
[359170578,1745769044364,-480.0,0.00019963,2]
[359170579,1745769044374,-480.0,0.00019963,2]
[359170580,1745769044384,-363.09121354,0.00019963,2]
[359170581,1745769044394,-480.0,0.00019963,2]
[359170582,1745769044403,-480.0,0.00019963,2]
[359170583,1745769044413,-480.0,0.00019963,2]
[359170584,1745769044423,-480.0,0.00019963,2]
[359170585,1745769044433,-480.0,0.00019963,2]
[359170586,1745769044442,-480.0,0.00019963,2]
[359170587,1745769044451,-480.0,0.00019963,2]
[359170588,1745769044461,-495.15,0.00019963,2]
[359170589,1745769044470,-480.0,0.00019963,2]
[359170590,1745769044480,-480.0,0.00019963,2]
[359170591,1745769044489,-480.0,0.00019963,2]
[359170592,1745769044498,-480.0,0.00019963,2]
[359170593,1745769044508,-480.0,0.00019963,2]
[359170594,1745769044517,-480.0,0.00019963,2]
[359170595,1745769044527,-480.0,0.00019963,2]
[359170596,1745769044537,-917.54,0.00019963,2]
[359170597,1745769044547,-480.0,0.00019963,2]
[359170598,1745769044556,-480.0,0.00019963,2]
[359170599,1745769044566,-480.0,0.00019963,2]
[359170600,1745769044575,-616.19,0.00019963,2]
[359170601,1745769044585,-616.18275969,0.00019963,2]
[359170602,1745769044595,-480.0,0.00019963,2]
[359170603,1745769044604,-1252.51,0.00019967,2]
[359170604,1745769044613,-151.0,0.00019967,2]
[359170605,1745769044623,-392.4976637,0.00019968,2]
[359170606,1745769044632,-5653.8387228,0.00019968,2]
[359170607,1745769044642,-59959.889,0.00019968,2]
[359170608,1745769044651,-11307.5331891,0.00019968,2]
[359170609,1745769044661,-151.0,0.00019968,2]
[359170610,1745769044670,-480.0,0.0001997,2]
[359170611,1745769044680,-480.0,0.0001997,2]
[359170612,1745769044690,-480.0,0.0001997,2]
[359170613,1745769044699,-480.0,0.0001997,2]
[359170614,1745769044709,-480.0,0.0001997,2]
[359170615,1745769044718,-480.0,0.0001997,2]
[359170616,1745769044727,-480.0,0.0001997,2]
[359170617,1745769044737,-480.0,0.0001997,2]
[359170618,1745769044747,-480.0,0.0001997,2]
[359170619,1745769044756,-480.0,0.0001997,2]
[359170620,1745769044765,-480.0,0.0001997,2]
[359170621,1745769044775,-480.0,0.0001997,2]
[359170622,1745769044784,-480.0,0.0001997,2]
[359170623,1745769044794,-480.0,0.0001997,2]
[359170624,1745769044803,-480.0,0.0001997,2]
[359170625,1745769044812,-584.89142601,0.0001997,2]
[359170626,1745769044821,-480.0,0.0001997,2]
[359170627,1745769044831,-480.0,0.0001997,2]
[359170628,1745769044840,-480.0,0.0001997,2]
[359170629,1745769044850,-480.0,0.0001997,2]
[359170630,1745769044860,-660.94,0.0001997,2]
[359170631,1745769044870,-480.0,0.0001997,2]
[359170632,1745769044879,-480.0,0.0001997,2]
[359170633,1745769044889,-480.0,0.0001997,2]
[359170634,1745769044898,-480.0,0.0001997,2]
[359170635,1745769044908,-480.0,0.0001997,2]
[359170636,1745769044917,-761.22,0.0001997,2]
[359170637,1745769044927,-480.0,0.0001997,2]
[359170638,1745769044937,-480.0,0.0001997,2]
[359170639,1745769044946,-480.0,0.00019971,2]
[359170640,1745769044955,-431.61641368,0.00019971,2]
[359170641,1745769044964,-480.0,0.00019971,2]
[359170642,1745769044975,-480.0,0.00019971,2]
[359170643,1745769044984,-480.0,0.00019971,2]
[359170644,1745769044993,-355.43066609,0.00019971,2]
[359170645,1745769045003,-226.97860295,0.00019971,2]
[359170646,1745769045012,-480.0,0.00019971,2]
[359170647,1745769045024,-480.0,0.00019971,2]
[359170648,1745769045033,-480.0,0.00019971,2]
[359170649,1745769045042,-480.0,0.00019971,2]
[359170650,1745769045051,-497.61040728,0.00019971,2]
[359170651,1745769045062,-480.0,0.00019971,2]
[359170652,1745769045072,-262.48841024,0.00019971,2]
[359170653,1745769045082,-480.0,0.00019971,2]
[359170654,1745769045092,-480.0,0.00019971,2]
[359170655,1745769045102,-480.0,0.00019971,2]
[359170656,1745769045111,-480.0,0.00019971,2]
[359170657,1745769045120,-480.0,0.00019971,2]
[359170658,1745769045130,-480.0,0.00019971,2]
[359170659,1745769045140,-480.0,0.00019971,2]
[359170660,1745769045149,-480.0,0.00019971,2]
[359170661,1745769045159,-480.0,0.00019971,2]
[359170662,1745769045168,-480.0,0.00019971,2]
[359170663,1745769045177,-480.0,0.00019971,2]
[359170664,1745769045187,-480.0,0.00019971,2]
[359170665,1745769045196,-1695.45,0.00019971,2]
[359170666,1745769045206,-480.0,0.00019971,2]
[359170667,1745769045215,-480.0,0.00019971,2]
[359170668,1745769045224,-2117.48,0.00019971,2]
[359170669,1745769045234,-480.0,0.00019971,2]
[359170670,1745769045243,-151.0,0.00019971,2]
[359170671,1745769045252,-480.0,0.00019971,2]
[359170672,1745769045262,-480.0,0.00019971,2]
[359170673,1745769045271,-480.0,0.00019971,2]
[359170674,1745769045280,-155.36815169,0.00019971,2]
[359170675,1745769045289,-480.0,0.00019971,2]
[359170676,1745769045299,-480.0,0.00019971,2]
[359170677,1745769045308,-480.0,0.00019971,2]
[359170678,1745769045318,-480.0,0.00019971,2]
[359170679,1745769045327,-480.0,0.00019971,2]
[359170680,1745769045336,-480.0,0.00019971,2]
[359170681,1745769045346,-480.0,0.00019971,2]
[359170682,1745769045356,-480.0,0.00019971,2]
[359170683,1745769045366,-480.0,0.00019971,2]
[359170684,1745769045376,-480.0,0.00019971,2]
[359170685,1745769045385,-999.0,0.00019972,2]
[359170686,1745769045395,-500.0,0.00019973,2]
[359170687,1745769045405,-500.42122176,0.00019973,2]
[359170688,1745769045415,-500.0,0.00019973,2]
[359170689,1745769045425,-500.0,0.00019973,2]
[359170690,1745769045435,-500.0,0.00019973,2]
[359170691,1745769045445,-1186.40292905,0.00019975,2]
[359170692,1745769045454,-480.0,0.00019977,2]
[359170693,1745769045464,-480.0,0.00019977,2]
[359170694,1745769045474,-480.0,0.00019977,2]
[359170695,1745769045483,-480.0,0.00019977,2]
[359170696,1745769045492,-480.0,0.00019977,2]
[359170697,1745769045502,-2382.62,0.00019977,2]
[359170698,1745769045511,-480.0,0.00019977,2]
[359170699,1745769045520,-480.0,0.00019977,2]
[359170700,1745769045530,-480.0,0.00019977,2]
[359170701,1745769045539,-480.0,0.00019977,2]
[359170702,1745769045548,-368.91404584,0.00019977,2]
[359170703,1745769045558,-480.0,0.00019977,2]
[359170704,1745769045568,-480.0,0.00019977,2]
[359170705,1745769045577,-480.0,0.00019977,2]
[359170706,1745769045587,-2157.49,0.00019977,2]
[359170707,1745769045596,-8629.89,0.00019977,2]
[359170708,1745769045605,-480.0,0.00019977,2]
[359170709,1745769045615,-290.87104116,0.00019977,2]
[359170710,1745769045624,-480.0,0.00019977,2]
[359170711,1745769045633,-7862.52,0.00019977,2]
[359170712,1745769045642,-480.0,0.00019977,2]
[359170713,1745769045651,-480.0,0.00019977,2]
[359170714,1745769045661,-480.0,0.00019977,2]
[359170715,1745769045670,-480.0,0.00019977,2]
[359170716,1745769045679,-480.0,0.00019977,2]
[359170717,1745769045689,-480.0,0.00019977,2]
[359170718,1745769045698,-480.0,0.00019977,2]
[359170719,1745769045707,-480.0,0.00019977,2]
[359170720,1745769045717,-480.0,0.00019977,2]
[359170721,1745769045726,-1126.02,0.00019977,2]
[359170722,1745769045736,-480.0,0.00019977,2]
[359170723,1745769045745,-480.0,0.00019977,2]
[359170724,1745769045755,-1108.95,0.00019977,2]
[359170725,1745769045764,-1406.8,0.00019977,2]
[359170726,1745769045774,-480.0,0.00019977,2]
[359170727,1745769045783,-5487.4,0.00019977,2]
[359170728,1745769045793,-1849.24,0.00019977,2]
[359170729,1745769045802,-480.0,0.00019977,2]
[359170730,1745769045812,-150.0,0.00019979,2]
[359170731,1745769045822,-500.0,0.00019979,2]
[359170732,1745769045831,-500.0,0.00019979,2]
[359170733,1745769045840,-480.0,0.0001998,2]
[359170734,1745769045850,-480.0,0.0001998,2]
[359170735,1745769045859,-480.0,0.0001998,2]
[359170736,1745769045868,-480.0,0.0001998,2]
[359170737,1745769045878,-480.0,0.0001998,2]
[359170738,1745769045887,-480.0,0.0001998,2]
[359170739,1745769045896,-480.0,0.0001998,2]
[359170740,1745769045905,-480.0,0.0001998,2]
[359170741,1745769045915,-480.0,0.0001998,2]
[359170742,1745769045924,-251.44197304,0.0001998,2]
[359170743,1745769045934,-480.0,0.0001998,2]
[359170744,1745769045944,-480.0,0.0001998,2]
[359170745,1745769045954,-480.0,0.0001998,2]
[359170746,1745769045963,-480.0,0.0001998,2]
[359170747,1745769045972,-480.0,0.0001998,2]
[359170748,1745769045982,-480.0,0.0001998,2]
[359170749,1745769045992,-480.0,0.0001998,2]
[359170750,1745769046001,-480.0,0.0001998,2]
[359170751,1745769046011,-480.0,0.0001998,2]
[359170752,1745769046024,-480.0,0.0001998,2]
[359170753,1745769046034,-480.0,0.0001998,2]
[359170754,1745769046043,-999.0,0.0001998,2]
[359170755,1745769046053,-480.0,0.0001998,2]
[359170757,1745769046063,-480.0,0.0001998,2]
[359170759,1745769046072,-480.0,0.0001998,2]
[359170760,1745769046082,-509.7,0.0001998,2]
[359170762,1745769046091,-480.0,0.0001998,2]
[359170764,1745769046101,-534.37391287,0.0001998,2]
[359170766,1745769046111,-480.0,0.0001998,2]
[359170768,1745769046120,-480.0,0.0001998,2]
[359170770,1745769046130,-480.0,0.0001998,2]
[359170772,1745769046140,-37844.76,0.0001998,2]
[359170791,1745769046295,-480.0,0.0001998,2]
[359170794,1745769046331,-5050.87,0.0001998,2]
[359170796,1745769046340,-480.0,0.0001998,2]
[359170798,1745769046350,-480.0,0.0001998,2]
[359170800,1745769046359,-480.0,0.0001998,2]
[359170802,1745769046369,-2293.04,0.0001998,2]
[359170804,1745769046378,-480.0,0.0001998,2]
[359170806,1745769046388,-480.0,0.0001998,2]
[359170808,1745769046397,-480.0,0.0001998,2]
[359170810,1745769046406,-480.0,0.0001998,2]
[359170812,1745769046415,-840.94,0.0001998,2]
[359170814,1745769046425,-480.0,0.0001998,2]
[359170816,1745769046434,-480.0,0.0001998,2]
[359170818,1745769046443,-480.0,0.0001998,2]
[359170819,1745769046452,-480.0,0.0001998,2]
[359170821,1745769046462,-480.0,0.0001998,2]
[359170823,1745769046471,-480.0,0.0001998,2]
[359170825,1745769046481,-480.0,0.0001998,2]
[359170826,1745769046490,-480.0,0.0001998,2]
[359170829,1745769046500,-800.13,0.0001998,2]
[359170830,1745769046510,-480.0,0.0001998,2]
[359170832,1745769046519,-480.0,0.0001998,2]
[359170834,1745769046528,-480.0,0.0001998,2]
[359170836,1745769046537,-897.81,0.0001998,2]
[359170838,1745769046547,-480.0,0.0001998,2]
[359170840,1745769046556,-480.0,0.0001998,2]
[359170842,1745769046566,-480.0,0.0001998,2]
[359170844,1745769046576,-480.0,0.0001998,2]
[359170846,1745769046585,-480.0,0.0001998,2]
[359170848,1745769046595,-480.0,0.0001998,2]
[359170850,1745769046604,-480.0,0.0001998,2]
[359170852,1745769046613,-480.0,0.0001998,2]
[359170854,1745769046623,-480.0,0.0001998,2]
[359170856,1745769046632,-480.0,0.0001998,2]
[359170858,1745769046642,-480.0,0.0001998,2]
[359170860,1745769046651,-480.0,0.0001998,2]
[359170862,1745769046662,-480.0,0.0001998,2]
[359170864,1745769046671,-480.0,0.0001998,2]
[359170866,1745769046680,-480.0,0.0001998,2]
[359170868,1745769046690,-480.0,0.0001998,2]
[359170869,1745769046700,-480.0,0.0001998,2]
[359170870,1745769046710,-480.0,0.0001998,2]
[359170871,1745769046720,-480.0,0.0001998,2]
[359170872,1745769046729,-480.0,0.0001998,2]
[359170873,1745769046739,-660.94,0.0001998,2]
[359170874,1745769046748,-480.0,0.0001998,2]
[359170875,1745769046757,-480.0,0.0001998,2]
[359170876,1745769046767,-863.53,0.0001998,2]
[359170877,1745769046776,-330.67264361,0.0001998,2]
[359170878,1745769046786,-480.0,0.0001998,2]
[359170879,1745769046796,-480.0,0.0001998,2]
[359170880,1745769046805,-480.0,0.0001998,2]
[359170881,1745769046816,-480.0,0.0001998,2]
[359170882,1745769046826,-480.0,0.0001998,2]
[359170883,1745769046835,-480.0,0.0001998,2]
[359170884,1745769046845,-480.0,0.0001998,2]
[359170885,1745769046855,-480.0,0.0001998,2]
[359170886,1745769046864,-761.22,0.0001998,2]
[359170887,1745769046874,-480.0,0.0001998,2]
[359170888,1745769046883,-480.0,0.0001998,2]
[359170889,1745769046893,-480.0,0.0001998,2]
[359170890,1745769046903,-500.0,0.0001998,2]
[359170891,1745769046912,-500.0,0.0001998,2]
[359170892,1745769046922,-500.0,0.0001998,2]
[359170893,1745769046931,-280.51920396,0.0001998,2]
[359170894,1745769046941,-150.0,0.0001998,2]
[359170895,1745769046950,-500.0,0.0001998,2]
[359170896,1745769046959,-1252.51,0.00019981,2]
[359170897,1745769046969,-480.0,0.00019981,2]
[359170898,1745769046978,-480.0,0.00019981,2]
[359170899,1745769046987,-480.0,0.00019981,2]
[359170900,1745769046996,-480.0,0.00019981,2]
[359170901,1745769047006,-480.0,0.00019981,2]
[359170902,1745769047017,-480.0,0.00019981,2]
[359170903,1745769047027,-619.778,0.00019981,2]
[359170904,1745769047036,-480.0,0.00019981,2]
[359170905,1745769047046,-343.33890364,0.00019981,2]
[359170906,1745769047055,-480.0,0.00019981,2]
[359170907,1745769047065,-480.0,0.00019981,2]
[359170908,1745769047075,-480.0,0.00019981,2]
[359170909,1745769047084,-480.0,0.00019981,2]
[359170910,1745769047096,-480.0,0.00019981,2]
[359170911,1745769047107,-480.0,0.00019981,2]
[359170912,1745769047116,-614.34878166,0.00019981,2]
[359170913,1745769047126,-597.20365968,0.00019981,2]
[359170914,1745769047135,-480.0,0.00019981,2]
[359170915,1745769047145,-480.0,0.00019981,2]
[359170916,1745769047155,-538.50599711,0.00019981,2]
[359170917,1745769047164,-480.0,0.00019981,2]
[359170918,1745769047174,-480.0,0.00019981,2]
[359170919,1745769047184,-480.0,0.00019981,2]
[359170920,1745769047194,-480.0,0.00019981,2]
[359170921,1745769047203,-480.0,0.00019981,2]
[359170922,1745769047213,-480.0,0.00019981,2]
[359170923,1745769047222,-480.0,0.00019981,2]
[359170924,1745769047232,-568.68953846,0.00019981,2]
[359170925,1745769047241,-480.0,0.00019981,2]
[359170926,1745769047251,-480.0,0.00019981,2]
[359170927,1745769047260,-480.0,0.00019981,2]
[359170928,1745769047270,-495.15,0.00019981,2]
[359170929,1745769047279,-480.0,0.00019981,2]
[359170930,1745769047289,-480.0,0.00019981,2]
[359170931,1745769047299,-480.0,0.00019981,2]
[359170932,1745769047309,-480.0,0.00019981,2]
[359170933,1745769047319,-480.0,0.00019981,2]
[359170934,1745769047328,-480.0,0.00019981,2]
[359170935,1745769047337,-1695.45,0.00019981,2]
[359170936,1745769047346,-480.0,0.00019981,2]
[359170937,1745769047356,-480.0,0.00019981,2]
[359170938,1745769047365,-480.0,0.00019981,2]
[359170939,1745769047375,-2117.48,0.00019981,2]
[359170940,1745769047384,-480.0,0.00019981,2]
[359170941,1745769047394,-480.0,0.00019981,2]
[359170942,1745769047404,-480.0,0.00019981,2]
[359170943,1745769047414,-151.0,0.00019981,2]
[359170944,1745769047423,-480.0,0.00019981,2]
[359170945,1745769047433,-480.0,0.00019981,2]
[359170946,1745769047442,-480.0,0.00019981,2]
[359170947,1745769047451,-480.0,0.00019981,2]
[359170948,1745769047461,-480.0,0.00019981,2]
[359170949,1745769047470,-480.0,0.00019981,2]
[359170950,1745769047480,-917.54,0.00019981,2]
[359170951,1745769047490,-480.0,0.00019981,2]
[359170952,1745769047500,-480.0,0.00019981,2]
[359170953,1745769047510,-480.0,0.00019981,2]
[359170954,1745769047520,-480.0,0.00019981,2]
[359170955,1745769047530,-467.84252305,0.00019981,2]
[359170956,1745769047539,-480.0,0.00019981,2]
[359170957,1745769047549,-480.0,0.00019981,2]
[359170958,1745769047558,-480.0,0.00019981,2]
[359170959,1745769047569,-480.0,0.00019981,2]
[359170960,1745769047579,-480.0,0.00019981,2]
[359170961,1745769047588,-616.19,0.00019981,2]
[359170962,1745769047598,-480.0,0.00019981,2]
[359170963,1745769047608,-480.0,0.00019981,2]
[359170964,1745769047617,-480.0,0.00019981,2]
[359170965,1745769047627,-480.0,0.00019981,2]
[359170966,1745769047637,-480.0,0.00019981,2]
[359170967,1745769047647,-310.6614893,0.00019981,2]
[359170968,1745769047657,-480.0,0.00019981,2]
[359170969,1745769047666,-480.0,0.00019981,2]
[359170970,1745769047676,-480.0,0.00019981,2]
[359170971,1745769047686,-480.0,0.00019981,2]
[359170972,1745769047695,-480.0,0.00019981,2]
[359170973,1745769047704,-480.0,0.00019981,2]
[359170974,1745769047713,-480.0,0.00019981,2]
[359170975,1745769047723,-480.0,0.00019981,2]
[359170976,1745769047732,-480.0,0.00019981,2]
[359170977,1745769047741,-480.0,0.00019981,2]
[359170978,1745769047751,-480.0,0.00019981,2]
[359170979,1745769047760,-999.0,0.00019981,2]
[359170980,1745769047770,-480.0,0.00019981,2]
[359170981,1745769047779,-480.0,0.00019981,2]
[359170982,1745769047788,-480.0,0.00019981,2]
[359170983,1745769047797,-509.7,0.00019981,2]
[359170984,1745769047806,-480.0,0.00019981,2]
[359170985,1745769047817,-480.0,0.00019981,2]
[359170986,1745769047826,-480.0,0.00019981,2]
[359170987,1745769047835,-480.0,0.00019981,2]
[359170988,1745769047845,-5877.08548014,0.00019981,2]
[359170989,1745769047868,-330.4393364,0.0001998,2]
[359170990,1745769047877,-470.38503646,0.00019981,2]
[359170991,1745769047911,-530.0254607,0.00019981,2]
[359170992,1745769047922,-2252.87192783,0.00019981,2]
[359170993,1745769047934,-2300.36197975,0.00019981,2]
[359170994,1745769048213,-8182.08608662,0.00019981,2]
[359170995,1745769048226,-1743.34049812,0.00019981,2]
[359170996,1745769048237,-14686.62215781,0.00019981,2]
[359170997,1745769048249,-1282.49419878,0.00019981,2]
[359170998,1745769087611,221.43229,0.00019982,23]
[359170999,1745769406828,221.43230022,0.00019981,23]
[359171000,1745769426729,170.61,0.00015122,2]
[359171001,1745769584891,197.36335904,0.00019996,5]
[359171002,1745769584985,1232.91870678,0.00019996,5]
[359171003,1745769598067,1800.0,0.00019,6]
[359171004,1745769600272,3700.0,0.000191,6]
[359171005,1745769602292,5600.0,0.000192,7]
[359171006,1745769604426,7400.0,0.000193,7]
[359171007,1745769606794,9300.0,0.000194,7]
[359171008,1745769608888,1800.0,0.000195,7]
[359171009,1745769610985,1800.0,0.000196,7]
[359171010,1745769613143,1800.0,0.000197,7]
[359171011,1745769615299,1457.84578784,0.000198,7]
[359171012,1745769615325,342.15421216,0.000198,7]
[359171013,1745769617589,2400.0,0.000199,7]
[359171014,1745769744233,151.0,0.0001998,7]
[359171015,1745769744691,151.0,0.0001998,7]
[359171016,1745769745154,151.0,0.0001998,7]
[359171017,1745769748494,363.64,0.00017033,2]
[359171018,1745769748689,363.64,0.00019297,2]
[359171020,1745769946264,250.0,0.00017,2]
[359171021,1745769947395,300.0,0.00019,2]
[359171022,1745769987709,1000.0,0.00018912,2]
[359171024,1745770144906,150.0,0.00018896,7]
[359171026,1745770187440,479.73505638,0.00036986,60]
[359171028,1745770201395,2629.14,0.0003698,60]
[359171030,1745770231870,-350.0,0.00019555,2]
[359171031,1745770231882,-455.88958407,0.00019555,2]
[359171032,1745770231892,-200.0,0.0001965,2]
[359171033,1745770231902,-250.0,0.00019744,2]
[359171034,1745770231911,-200.0,0.00019744,2]
[359171035,1745770231921,-150.0,0.0001976,2]
[359171036,1745770231931,-150.0,0.00019774,2]
[359171037,1745770231940,-193.2045999,0.00019783,2]
[359171038,1745770231949,-150.0,0.00019784,2]
[359171039,1745770231959,-473.6668589,0.000198,2]
[359171040,1745770231969,-150.0,0.00019831,2]
[359171041,1745770231979,-1458.88173896,0.0001984,2]
[359171042,1745770231990,-150.0,0.00019851,2]
[359171043,1745770232000,-192.75954689,0.0001986,3]
[359171044,1745770232009,-352.05880368,0.00019861,2]
[359171045,1745770232019,-1200.0,0.00019866,2]
[359171046,1745770232029,-300.0,0.00019866,2]
[359171047,1745770232039,-300.0,0.00019866,2]
[359171048,1745770232049,-3005.51345696,0.00019867,2]
[359171049,1745770232061,-2298.60598069,0.00019867,2]
[359171050,1745770232070,-178.61948713,0.00019867,2]
[359171051,1745770232080,-869.8198,0.00019868,2]
[359171052,1745770232091,-2500.0,0.00019868,2]
[359171053,1745770232100,-3005.51345696,0.00019871,2]
[359171054,1745770232110,-2298.60598062,0.00019871,2]
[359171055,1745770232121,-3005.51345696,0.00019874,2]
[359171056,1745770232131,-2298.60598062,0.00019874,2]
[359171057,1745770232142,-1017.0406,0.00019877,2]
[359171058,1745770232152,-179.0,0.00019877,2]
[359171059,1745770232163,-1087.08290845,0.00019878,2]
[359171063,1745770232191,-1918.43054851,0.00019878,2]
[359171064,1745770232201,-2298.60598062,0.00019878,2]
[359171067,1745770232211,-3548.49546808,0.00019881,2]
[359171069,1745770232222,-515.29159467,0.00019881,2]
[359171073,1745770232250,-1558.88173896,0.00019881,2]
[359171074,1745770232261,-800.0,0.00019881,2]
[359171347,1745770237903,-22241.66689829,0.00019881,2]
[359171348,1745770237913,-3005.51345696,0.00019882,2]
[359171349,1745770237922,-2298.60598062,0.00019882,2]
[359171350,1745770237931,-500.0,0.00019882,2]
[359171351,1745770237943,-150.0,0.00019883,2]
[359171352,1745770237953,-804.48504167,0.00019883,2]
[359171353,1745770237964,-2680.81765833,0.00019883,2]
[359171354,1745770237974,-3005.51345696,0.00019885,2]
[359171355,1745770237983,-2298.60598062,0.00019885,2]
[359171356,1745770237992,-3005.51345696,0.00019889,2]
[359171357,1745770238002,-2298.60598062,0.00019889,2]
[359171358,1745770238011,-3005.51345696,0.00019893,2]
[359171359,1745770238020,-2298.60598062,0.00019893,2]
[359171360,1745770238029,-3005.51345696,0.00019896,2]
[359171361,1745770238039,-2298.60598062,0.00019896,2]
[359171362,1745770238048,-494.9206033,0.00019899,2]
[359171363,1745770238058,-494.9206033,0.000199,2]
[359171364,1745770238067,-3005.51345696,0.000199,2]
[359171365,1745770238077,-2298.60598062,0.000199,2]
[359171366,1745770238087,-494.9206033,0.000199,2]
[359171367,1745770238098,-2076.28411663,0.000199,2]
[359171368,1745770238108,-207.4,0.00019953,2]
[359171369,1745770238118,-454.04,0.00019957,2]
[359171370,1745770238127,-212.80811289,0.00019959,2]
[359171371,1745770238136,-172.23999696,0.00019959,2]
[359171372,1745770238145,-231.23500504,0.00019959,2]
[359171373,1745770238154,-234.64875356,0.00019959,2]
[359171374,1745770238163,-500.0,0.0001996,2]
[359171375,1745770238173,-500.0,0.0001996,2]
[359171376,1745770238183,-500.0,0.0001996,2]
[359171377,1745770238194,-500.0,0.0001996,2]
[359171379,1745770238204,-500.0,0.0001996,2]
[359171381,1745770238214,-480.0,0.0001996,2]
[359171382,1745770238224,-252.68885387,0.0001996,2]
[359171383,1745770238235,-510.88946932,0.0001996,2]
[359171384,1745770238247,-480.0,0.0001996,2]
[359171385,1745770238258,-509.42234706,0.0001996,2]
[359171386,1745770238268,-480.0,0.0001996,2]
[359171387,1745770238278,-508.93933535,0.0001996,2]
[359171388,1745770238287,-500.0,0.0001996,2]
[359171391,1745770238537,-510.13993371,0.0001996,2]
[359171392,1745770238551,-500.0,0.0001996,2]